bitfinex/quotes_SOLUSD_20250930
["timestamp","ask_amount","ask_price","bid_price","bid_amount"]
[1759263554094,2.56383567,209.03,208.97,37.32]
[1759263554311,19.30864477,209.02,208.98,34.06]
[1759263554612,20.01864477,209.02,208.98,34.06]
[1759263554910,19.30864477,209.02,208.98,34.06]
[1759263555101,16.7448091,209.02,208.98,34.06]
[1759263555830,17.4548091,209.02,208.98,34.06]
[1759263555984,2.56383567,208.99,208.97,37.32]
[1759263556187,3.27383567,208.99,208.98,34.06]
[1759263556412,2.56383567,209.01,208.98,34.06]
[1759263556815,16.86942968,209.0,208.99,34.06]
[1759263557698,21.65411867,209.0,208.99,34.06]
[1759263559405,19.090283,209.0,208.99,34.06]
[1759263559607,21.65411867,209.0,208.99,34.06]
[1759263560512,4.78448424,209.01,208.99,34.06]
[1759263561204,4.78412147,209.03,208.99,34.06]
[1759263561406,4.78331579,209.06,209.0,0.71]
[1759263564516,4.78331579,209.06,209.0,5.49462399]
[1759263565797,4.78311831,209.07,209.01,0.71]
[1759263566118,4.78311831,209.07,209.02,34.06]
[1759263566345,4.78311831,209.07,209.03,0.71]
[1759263567320,4.78285823,209.08,209.03,0.71]
[1759263567517,21.48,209.1,209.04,0.71]
[1759263567707,4.78263479,209.09,209.05,34.04]
[1759263567908,4.78263479,209.09,209.05,34.75]
[1759263568301,4.78263479,209.09,209.05,34.04]
[1759263569114,0.68,209.08,209.05,34.04]
[1759263570206,4.78263479,209.09,209.05,34.04]
[1759263570400,5.46263479,209.09,209.05,34.04]
[1759263572934,4.78244268,209.1,209.05,34.75]
[1759263573110,5.46244268,209.1,209.05,34.75]
[1759263573806,7.10259986,209.1,209.05,34.75]
[1759263574110,7.10259986,209.1,209.05,34.04]
[1759263574111,0.68,209.09,209.05,34.04]
[1759263576030,4.78285823,209.08,209.05,113.14]
[1759263576230,4.78285823,209.08,209.05,113.85]
[1759263577132,0.1,209.11,209.06,0.71]
[1759263577335,0.1,209.11,209.07,0.71]
[1759263578113,4.88220073,209.11,209.07,0.71]
[1759263578315,4.88220073,209.11,209.05,34.04]
[1759263578517,4.88220073,209.11,209.05,34.75]
[1759263580141,4.88220073,209.11,209.05,39.53353856]
[1759263580313,4.88220073,209.11,209.06,0.71]
[1759263581935,5.56220073,209.11,209.07,37.3]
[1759263585540,5.56220073,209.11,209.07,38.01]
[1759263585930,5.56220073,209.11,209.08,33.94]
[1759263587818,5.56220073,209.11,209.08,113.04]
[1759263592158,7.20235791,209.11,209.08,113.04]
[1759263592862,6.52235791,209.11,209.08,113.04]
[1759263593043,7.18235791,209.11,209.08,113.04]
[1759263594854,5.54220073,209.11,209.08,113.04]
[1759263595361,5.54220073,209.11,209.08,33.94]
[1759263595660,4.88220073,209.11,209.08,33.94]
[1759263596156,5.54220073,209.11,209.08,33.94]
[1759263596385,7.18235791,209.11,209.08,33.94]
[1759263598063,0.66,209.1,209.08,33.94]
[1759263598450,2.30015718,209.09,209.07,37.3]
[1759263598650,2.30015718,209.09,209.08,33.94]
[1759263599350,7.08278666,209.09,209.08,33.94]
[1759263600765,4.78262948,209.09,209.08,33.94]
[1759263601462,4.78240076,209.1,209.08,33.94]
[1759263601657,5.44240076,209.1,209.08,33.94]
[1759263605142,4.78240076,209.1,209.08,33.94]
[1759263605338,5.44240076,209.1,209.08,33.94]
[1759263606670,4.78240076,209.1,209.08,34.62]
[1759263606966,4.78240076,209.1,209.08,33.94]
[1759263607460,4.88221311,209.11,209.09,0.68]
[1759263607651,4.88221311,209.11,209.1,33.92]
[1759263608270,5.54221311,209.11,209.1,33.92]
[1759263608571,4.88221311,209.11,209.1,33.92]
[1759263611745,4.88221311,209.11,209.07,37.3]
[1759263611746,19.13780044,209.11,209.07,37.3]
[1759263611894,1.64015718,209.08,209.07,37.3]
[1759263612086,23.10015718,209.08,209.07,37.3]
[1759263612282,21.46,209.08,209.07,71.22]
[1759263612591,20.8,209.08,209.07,71.22]
[1759263612761,4.78285823,209.08,209.07,71.22]
[1759263613156,5.44285823,209.08,209.07,71.22]
[1759263613568,7.08301541,209.08,209.07,71.22]
[1759263613978,5.44285823,209.08,209.07,71.22]
[1759263614273,26.24285823,209.08,209.07,71.22]
[1759263614781,25.58285823,209.08,209.07,71.22]
[1759263617449,4.88219888,209.11,209.07,71.9]
[1759263617662,4.88219888,209.11,209.08,0.71]
[1759263617877,4.88219888,209.11,209.09,33.92]
[1759263618751,0.68,209.1,209.07,37.3]
[1759263618970,7.10278666,209.09,209.08,33.92]
[1759263624775,7.10278666,209.09,208.99,0.7]
[1759263624776,20.8,209.06,208.99,0.7]
[1759263624985,2.36015718,209.05,209.0,37.3]
[1759263625150,0.72,209.04,209.0,37.3]
[1759263625355,1.64015718,209.05,209.0,37.3]
[1759263625574,0.72,209.04,209.0,37.3]
[1759263625962,4.78400229,209.03,209.01,33.92]
[1759263626171,4.78378568,209.04,209.01,34.62]
[1759263628174,0.72,209.04,209.01,33.92]
[1759263628377,4.7835446,209.05,209.01,33.92]
[1759263628583,4.7835446,209.05,209.01,34.62]
[1759263629081,5.5035446,209.05,209.01,33.92]
[1759263629463,4.7835446,209.05,209.01,34.62]
[1759263629652,5.5035446,209.05,209.01,34.62]
[1759263629980,0.72,209.04,209.01,33.92]
[1759263630361,4.78400229,209.03,209.01,33.92]
[1759263630766,4.78400229,209.03,209.0,37.3]
[1759263630967,23.3640189,209.01,209.0,37.3]
[1759263631167,24.0840189,209.01,209.0,71.22]
[1759263632265,28.86847897,209.01,209.0,71.22]
[1759263632671,28.86847897,209.01,208.9,83.88691465]
[1759263632672,54.42522316,209.01,208.9,79.1]
[1759263632982,20.8,208.98,208.92,0.7]
[1759263633177,23.3640189,208.98,208.92,0.7]
[1759263633374,25.58446007,209.01,208.92,0.7]
[1759263633576,28.14847897,209.01,208.92,0.7]
[1759263633988,25.58446007,209.01,208.93,33.92]
[1759263634190,25.58446007,209.01,208.94,0.7]
[1759263634366,37.54561025,209.01,208.95,33.92]
[1759263634564,37.54561025,209.01,208.95,34.62]
[1759263634780,37.54561025,209.01,208.96,37.3]
[1759263634966,38.26561025,209.01,208.97,33.92]
[1759263636082,4.78426834,209.02,208.98,0.7]
[1759263636268,4.78426834,209.02,208.99,33.92]
[1759263636589,4.78400229,209.03,209.0,0.7]
[1759263636787,20.8,209.02,209.01,33.92]
[1759263637565,0.72,209.09,209.01,34.62]
[1759263637876,8.06687713,209.08,209.01,33.92]
[1759263638073,0.72,209.07,209.01,33.92]
[1759263638278,0.72,209.06,209.01,33.92]
[1759263638583,4.7835446,209.05,209.01,33.92]
[1759263639084,4.7835446,209.05,209.02,0.7]
[1759263639463,4.7835446,209.05,209.01,33.92]
[1759263639663,4.7835446,209.05,209.01,34.62]
[1759263640995,16.74168118,209.06,209.01,34.62]
[1759263641405,17.46168118,209.06,209.01,34.62]
[1759263642193,17.46168118,209.06,209.02,37.3]
[1759263643690,5.50331579,209.06,209.02,37.3]
[1759263643880,5.50331579,209.06,209.02,38.0]
[1759263644075,5.50331579,209.06,209.02,37.3]
[1759263644995,17.46160527,209.06,209.02,37.3]
[1759263645377,0.72,209.05,209.02,37.3]
[1759263647291,19.30562417,209.06,209.02,37.3]
[1759263647591,20.02562417,209.06,209.02,37.3]
[1759263651400,20.02562417,209.06,209.02,38.0]
[1759263651597,17.46160527,209.06,209.02,37.3]
[1759263653305,5.49331579,209.06,209.02,117.07]
[1759263653502,5.49331579,209.06,209.03,33.9]
[1759263654987,17.45160527,209.06,209.03,33.9]
[1759263655189,0.71,209.05,209.03,33.9]
[1759263656006,4.78264587,209.09,209.03,33.9]
[1759263656189,4.78264587,209.09,209.04,0.67]
[1759263656426,4.783087,209.07,209.05,33.9]
[1759263656802,4.783087,209.07,209.05,34.57]
[1759263657704,5.493087,209.07,209.05,33.9]
[1759263659603,0.71,209.06,209.02,37.3]
[1759263659809,0.71,209.05,209.03,33.9]
[1759263660513,2.5640189,209.06,209.03,33.9]
[1759263660702,0.71,209.04,209.03,33.9]
[1759263661095,5.49377344,209.04,209.03,33.9]
[1759263661611,4.78331579,209.06,209.03,33.9]
[1759263661819,4.78331579,209.06,209.03,34.57]
[1759263662316,25.58331579,209.06,209.03,34.57]
[1759263663511,4.78312823,209.07,209.04,0.67]
[1759263663690,4.78312823,209.07,209.05,33.9]
[1759263665613,0.71,209.06,209.05,33.9]
[1759263666118,0.71,209.06,209.05,71.2]
[1759263667818,4.78331579,209.06,209.05,71.2]
[1759263668610,4.78311941,209.07,209.05,71.2]
[1759263668804,4.7828871,209.08,209.05,71.2]
[1759263669014,20.8,209.09,209.06,0.67]
[1759263669332,20.8,209.09,209.07,33.88]
[1759263669496,20.8,209.09,209.07,34.55]
[1759263670305,25.5826962,209.09,209.07,34.55]
[1759263670921,4.78240914,209.1,209.07,33.88]
[1759263671227,0.1,209.11,209.07,33.88]
[1759263671228,0.1,209.11,209.08,0.67]
[1759263671472,0.1,209.11,209.09,33.88]
[1759263671597,0.1,209.11,209.09,34.55]
[1759263672598,0.1,209.11,209.1,0.67]
[1759263675822,0.1,209.11,209.1,5.45240076]
[1759263676125,0.1,209.11,209.1,0.67]
[1759263678026,0.1,209.11,209.06,0.66]
[1759263678231,0.1,209.11,209.07,34.54]
[1759263678632,0.1,209.11,209.08,0.66]
[1759263678833,4.8821746,209.11,209.09,33.88]
[1759263679125,0.7,209.1,209.05,116.4]
[1759263679329,0.7,209.1,209.06,33.88]
[1759263679515,4.78262948,209.09,209.06,33.88]
[1759263679714,4.78262948,209.09,209.05,37.96]
[1759263679715,0.7,209.08,209.05,37.3]
[1759263679909,16.7392032,209.09,209.05,37.3]
[1759263679910,3.2640189,209.07,209.06,33.86]
[1759263680106,0.7,209.07,209.06,33.86]
[1759263681524,5.483087,209.07,209.06,33.86]
[1759263681839,8.0471059,209.07,209.06,33.86]
[1759263685725,20.8,209.08,209.06,33.86]
[1759263685726,4.78287054,209.08,209.06,33.86]
[1759263688339,4.78262948,209.09,209.06,34.54]
[1759263688517,4.78262948,209.09,209.06,33.86]
[1759263689248,5.45262948,209.09,209.06,33.86]
[1759263689733,20.8,209.07,209.06,33.86]
[1759263691743,25.583087,209.07,209.06,33.86]
[1759263692135,26.253087,209.07,209.06,33.86]
[1759263692337,25.583087,209.07,209.06,33.86]
[1759263692953,25.583087,209.07,209.06,33.86]
[1759263694355,5.453087,209.07,209.06,33.86]
[1759263695445,5.453087,209.07,209.05,37.3]
[1759263695647,4.783087,209.07,209.06,33.86]
[1759263696047,4.78285823,209.08,209.06,33.86]
[1759263696254,5.45285823,209.08,209.06,33.86]
[1759263696462,5.45285823,209.08,209.05,37.3]
[1759263696832,5.45285823,209.08,209.06,33.86]
[1759263697850,16.7392032,209.09,209.06,33.86]
[1759263698055,0.67,209.08,209.06,33.86]
[1759263698237,0.67,209.08,209.05,37.3]
[1759263698553,0.67,209.07,209.06,33.86]
[1759263698938,19.04935974,209.09,209.06,33.86]
[1759263699138,0.67,209.07,209.06,33.86]
[1759263699949,5.453087,209.07,209.06,33.86]
[1759263701337,4.783087,209.07,209.06,33.86]
[1759263702038,4.78285823,209.08,209.06,34.54]
[1759263702240,0.67,209.07,209.06,33.86]
[1759263702548,2.31015654,209.07,209.06,33.86]
[1759263703753,27.89324354,209.07,209.06,33.86]
[1759263704331,41.48883755,209.07,209.06,33.86]
[1759263707060,27.89324354,209.07,209.06,33.86]
[1759263709536,41.48883755,209.07,209.05,37.3]
[1759263709858,15.90575055,209.06,209.05,37.3]
[1759263710459,20.68906634,209.06,209.05,37.3]
[1759263710753,20.68906634,209.06,209.05,71.16]
[1759263712731,20.68906634,209.06,209.05,71.14]
[1759263717053,20.8,209.02,209.0,37.3]
[1759263717255,21.48,209.02,209.01,33.84]
[1759263717438,23.12015654,209.02,209.01,33.84]
[1759263717642,27.22438771,209.02,209.01,33.84]
[1759263718574,25.58423117,209.02,209.01,33.84]
[1759263718876,27.22438771,209.02,209.01,33.84]
[1759263719049,25.58423117,209.02,209.01,33.84]
[1759263719242,27.22438771,209.02,209.01,33.84]
[1759263720279,11.95813093,209.07,209.01,34.52]
[1759263720456,4.78331579,209.06,209.02,0.68]
[1759263720655,4.78331579,209.06,209.03,33.84]
[1759263720978,16.74160527,209.06,209.04,0.68]
[1759263721145,16.74160527,209.06,209.05,33.84]
[1759263721347,4.78311528,209.07,209.05,34.52]
[1759263721553,4.88220185,209.11,209.06,0.68]
[1759263721860,2.32015654,209.1,209.07,33.84]
[1759263722046,1.64015654,209.1,209.08,33.84]
[1759263722251,18.47778854,209.11,209.09,33.84]
[1759263722452,19.15778854,209.11,209.09,33.84]
[1759263722648,4.88220185,209.11,209.1,0.68]
[1759263724773,4.88220185,209.11,209.09,33.84]
[1759263724958,4.88220185,209.11,209.09,34.52]
[1759263725159,0.1,209.11,209.1,0.68]
[1759263725368,4.88217206,209.11,209.09,33.84]
[1759263725574,4.88217206,209.11,209.09,34.52]
[1759263725773,4.88217206,209.11,209.09,33.84]
[1759263726075,4.88217206,209.11,209.1,0.68]
[1759263726366,0.1,209.11,209.1,0.68]
[1759263728476,4.88217206,209.11,209.1,33.84]
[1759263729193,4.88217206,209.11,209.1,34.52]
[1759263729687,0.1,209.11,209.1,34.52]
[1759263732090,0.1,209.11,209.1,39.30240076]
[1759263733069,0.1,209.11,209.1,118.40240076]
[1759263733401,0.1,209.11,209.1,41.50046214]
[1759263734076,0.1,209.13,209.12,34.39559401]
[1759263734270,0.1,209.14,209.13,18.66163187]
[1759263734469,0.1,209.14,209.13,19.34163187]
[1759263739396,4.77967279,209.22,209.17,79.0]
[1759263739595,5.49967279,209.22,209.18,33.82]
[1759263739799,5.49967279,209.22,209.19,37.28]
[1759263740006,5.49967279,209.22,209.2,33.82]
[1759263740706,4.77967279,209.22,209.2,33.82]
[1759263740876,5.49967279,209.22,209.2,33.82]
[1759263741795,0.72,209.22,209.2,33.82]
[1759263742014,4.77946668,209.23,209.2,33.82]
[1759263742801,5.49946668,209.23,209.21,33.8]
[1759263743386,4.77946668,209.23,209.21,33.8]
[1759263743586,5.47946668,209.23,209.21,33.8]
[1759263743790,4.77946668,209.23,209.21,33.8]
[1759263745401,4.77946668,209.23,209.21,112.8]
[1759263745903,5.47946668,209.23,209.21,112.8]
[1759263747809,4.87923188,209.24,209.21,112.8]
[1759263748111,5.57923188,209.24,209.21,112.8]
[1759263748895,4.87923188,209.24,209.21,112.8]
[1759263749102,5.57923188,209.24,209.21,112.8]
[1759263749301,5.47965732,209.23,209.21,112.8]
[1759263749511,0.7,209.22,209.21,112.8]
[1759263749918,0.7,209.22,209.21,79.0]
[1759263750122,0.7,209.22,209.21,112.8]
[1759263751391,5.47965777,209.22,209.21,112.8]
[1759263751591,5.47965777,209.22,209.21,79.0]
[1759263751801,5.47965777,209.22,209.21,112.8]
[1759263752002,5.47965777,209.22,209.21,33.8]
[1759263752207,17.42880221,209.22,209.19,37.28]
[1759263752413,0.7,209.21,209.2,33.8]
[1759263754100,5.47988623,209.21,209.2,33.8]
[1759263755515,8.27202429,209.21,209.2,33.8]
[1759263756092,5.47988623,209.21,209.2,33.8]
[1759263757918,8.27202429,209.21,209.2,33.8]
[1759263758426,5.47988623,209.21,209.2,33.8]
[1759263759209,8.27202429,209.21,209.2,33.8]
[1759263759612,5.47988623,209.21,209.2,33.8]
[1759263760726,8.27202429,209.21,209.2,33.8]
[1759263761506,5.47988623,209.21,209.2,33.8]
[1759263761996,8.27202429,209.21,209.2,33.8]
[1759263762225,20.22173988,209.21,209.11,0.7]
[1759263762425,2.79213806,209.17,209.11,0.7]
[1759263762728,3.49213806,209.16,209.09,0.7]
[1759263763399,3.49213806,209.16,209.1,33.8]
[1759263764421,17.43440114,209.15,209.1,33.8]
[1759263764718,0.7,209.14,209.1,33.8]
[1759263764907,16.73440114,209.15,209.11,37.28]
[1759263765111,17.43440114,209.15,209.12,33.8]
[1759263766426,4.78125747,209.15,209.12,33.8]
[1759263767220,5.48125747,209.15,209.12,33.8]
[1759263767633,4.78125747,209.15,209.12,33.8]
[1759263768241,16.73361575,209.16,209.12,33.8]
[1759263768538,17.43361575,209.16,209.12,33.8]
[1759263769056,16.73361575,209.16,209.13,0.7]
[1759263769241,16.73361575,209.16,209.14,33.8]
[1759263769424,16.73361575,209.16,209.14,112.9]
[1759263770120,17.43361575,209.16,209.14,112.9]
[1759263771824,0.7,209.15,209.14,112.9]
[1759263772638,16.73361575,209.16,209.14,112.9]
[1759263773141,17.39361575,209.16,209.14,112.9]
[1759263774243,11.95107028,209.19,209.14,112.9]
[1759263774554,0.76,209.24,209.15,0.67]
[1759263774718,0.66,209.23,209.16,33.78]
[1759263774918,0.66,209.23,209.16,34.45]
[1759263775418,0.66,209.23,209.17,0.67]
[1759263775618,0.66,209.23,209.18,33.78]
[1759263775820,0.66,209.22,209.18,33.78]
[1759263776224,17.4872796,209.24,209.19,0.67]
[1759263776564,0.66,209.23,209.2,33.78]
[1759263777442,16.8272796,209.24,209.2,34.45]
[1759263777815,17.4872796,209.24,209.2,33.78]
[1759263778647,5.53927731,209.24,209.2,33.78]
[1759263778831,5.53927731,209.24,209.21,37.28]
[1759263779143,25.67927731,209.24,209.21,37.95]
[1759263779730,4.87927731,209.24,209.22,0.67]
[1759263779933,4.87927731,209.24,209.23,33.78]
[1759263780130,0.1,209.24,209.23,33.78]
[1759263780437,0.1,209.24,209.23,113.55]
[1759263782348,0.1,209.24,209.23,34.45]
[1759263783447,0.1,209.24,209.23,39.51375247]
[1759263784349,0.1,209.24,209.23,74.38728941]
[1759263784553,0.1,209.24,209.23,73.90934648]
[1759263789934,0.1,209.3,209.28,78.7]
[1759263790157,0.1,209.3,209.29,33.76]
[1759263792730,0.1,209.3,209.29,34.43]
[1759263793237,0.1,209.3,209.29,38.53805915]
[1759263793542,0.76,209.3,209.29,33.76]
[1759263794278,0.1,209.3,209.29,33.76]
[1759263795237,0.1,209.3,209.29,38.53805915]
[1759263796871,0.1,209.3,209.29,33.76]
[1759263798844,0.1,209.3,209.29,245.26]
[1759263799162,0.1,209.3,209.29,250.03805915]
[1759263799341,0.1,209.3,209.29,245.26]
[1759263799546,0.1,209.3,209.29,250.03805915]
[1759263799951,0.1,209.3,209.29,245.26]
[1759263800740,0.77,209.3,209.29,245.26]
[1759263800940,0.77,209.3,209.2,4.77989219]
[1759263800941,5.54783086,209.3,209.2,4.77989219]
[1759263801275,3.46213806,209.29,209.21,37.26]
[1759263801443,3.46213806,209.28,209.21,37.26]
[1759263801642,3.46213806,209.28,209.22,33.74]
[1759263801847,0.67,209.27,209.22,33.74]
[1759263802149,0.67,209.26,209.22,33.74]
[1759263802352,0.67,209.25,209.22,33.74]
[1759263802563,0.67,209.24,209.22,33.74]
[1759263802750,0.67,209.23,209.22,33.74]
[1759263804447,5.44942933,209.23,209.22,33.74]
[1759263804844,14.73840458,209.28,209.22,33.74]
[1759263804845,11.94626652,209.28,209.22,33.74]
[1759263805160,5.44868008,209.27,209.22,33.74]
[1759263805657,0.67,209.26,209.22,33.74]
[1759263805854,0.1,209.3,209.23,0.66]
[1759263806064,0.1,209.3,209.24,33.74]
[1759263806264,4.87789185,209.3,209.24,34.4]
[1759263806466,0.67,209.29,209.24,33.74]
[1759263806666,0.67,209.28,209.24,33.74]
[1759263807066,5.44830111,209.28,209.24,33.74]
[1759263809059,0.67,209.27,209.24,33.74]
[1759263809270,4.77805915,209.29,209.24,33.74]
[1759263809577,0.67,209.28,209.24,33.74]
[1759263809976,0.1,209.3,209.25,0.66]
[1759263810169,0.77,209.3,209.26,33.74]
[1759263810473,0.1,209.3,209.26,245.24]
[1759263810676,0.1,209.3,209.27,0.66]
[1759263810874,0.1,209.3,209.28,33.74]
[1759263811875,4.87783945,209.3,209.28,33.74]
[1759263812064,5.54783945,209.3,209.28,33.74]
[1759263812573,0.1,209.3,209.28,33.74]
[1759263812963,4.87783497,209.3,209.28,33.74]
[1759263813564,0.1,209.3,209.28,33.74]
[1759263813760,5.54787934,209.3,209.28,33.74]
[1759263814657,4.87787934,209.3,209.28,33.74]
[1759263814871,5.54787934,209.3,209.28,33.74]
[1759263815781,0.67,209.29,209.28,33.74]
[1759263816684,0.67,209.29,209.28,112.44]
[1759263817065,0.1,209.3,209.28,112.44]
[1759263817377,5.5478338,209.3,209.28,112.44]
[1759263817882,0.67,209.29,209.28,112.44]
[1759263818782,0.67,209.29,209.28,149.7]
[1759263819079,5.44805915,209.29,209.28,71.0]
[1759263821164,7.23315887,209.29,209.28,71.0]
[1759263822086,32.77390076,209.29,209.28,37.26]
[1759263822297,17.39320703,209.29,209.28,37.26]
[1759263822463,5.44805915,209.29,209.28,37.26]
[1759263823272,7.23315887,209.29,209.28,71.0]
[1759263824697,5.44805915,209.29,209.28,71.0]
[1759263824868,7.23315887,209.29,209.28,71.0]
[1759263826778,5.44805915,209.29,209.28,71.0]
[1759263827281,7.23315887,209.29,209.28,71.0]
[1759263828685,20.82875288,209.29,209.28,71.0]
[1759263829380,20.8,209.26,209.19,0.66]
[1759263829576,1.78509972,209.25,209.2,37.26]
[1759263829904,0.67,209.24,209.2,37.26]
[1759263830270,21.47,209.26,209.2,37.92]
[1759263830470,4.77805915,209.29,209.21,34.4]
[1759263830699,4.77805915,209.29,209.22,0.66]
[1759263830885,4.77805915,209.29,209.23,33.74]
[1759263831496,16.72320703,209.29,209.23,33.74]
[1759263831993,19.17830675,209.29,209.22,0.66]
[1759263832185,19.17830675,209.29,209.23,33.74]
[1759263832993,2.45509972,209.28,209.23,33.74]
[1759263833298,4.77851579,209.27,209.23,33.74]
[1759263833481,17.38480527,209.27,209.23,33.74]
[1759263833794,5.43851579,209.27,209.23,33.74]
[1759263834491,35.29021017,209.3,209.24,0.68]
[1759263834802,35.29021017,209.3,209.25,33.74]
[1759263835005,34.63021017,209.3,209.25,33.74]
[1759263835192,0.66,209.29,209.25,33.74]
[1759263835702,17.38320703,209.29,209.25,33.74]
[1759263836206,0.66,209.28,209.25,33.74]
[1759263836377,16.72320703,209.29,209.25,33.74]
[1759263836573,0.66,209.28,209.25,33.74]
[1759263837391,16.72320703,209.29,209.25,33.74]
[1759263837604,0.66,209.28,209.25,33.74]
[1759263838212,4.77851579,209.27,209.26,37.26]
[1759263840305,20.9,209.3,209.26,37.26]
[1759263840507,0.66,209.29,209.27,33.74]
[1759263840715,5.43809011,209.29,209.27,33.74]
[1759263840902,4.77809011,209.29,209.27,33.74]
[1759263841799,0.1,209.3,209.27,34.42]
[1759263842115,4.87785712,209.3,209.27,33.74]
[1759263842305,0.1,209.3,209.28,0.68]
[1759263842491,0.1,209.3,209.29,33.74]
[1759263842690,0.1,209.3,209.29,34.42]
[1759263845718,0.1,209.3,209.29,39.19805915]
[1759263846317,0.1,209.3,209.29,34.42]
[1759263847306,0.1,209.3,209.29,39.19805915]
[1759263847902,0.1,209.3,209.29,33.74]
[1759263848413,0.1,209.3,209.29,34.42]
[1759263848819,0.1,209.3,209.29,39.48238229]
[1759263849506,0.1,209.32,209.31,78.6]
[1759263849692,0.1,209.32,209.31,112.32]
[1759263849893,0.1,209.32,209.31,113.0]
[1759263851004,0.1,209.32,209.31,112.32]
[1759263853220,0.1,209.32,209.31,117.09760259]
[1759263853719,0.1,209.32,209.31,112.32]
[1759263857701,0.76,209.32,209.31,112.32]
[1759263858202,0.1,209.32,209.31,112.32]
[1759263858823,0.1,209.32,209.31,117.09760259]
[1759263859031,0.1,209.32,209.31,117.76760259]
[1759263860318,0.1,209.32,209.31,112.99]
[1759263860500,0.1,209.32,209.31,112.32]
[1759263861012,0.1,209.32,209.31,117.09760259]
[1759263862213,0.81,209.32,209.31,112.32]
[1759263862424,0.81,209.32,209.31,33.72]
[1759263862906,0.1,209.32,209.31,33.72]
[1759263863930,0.1,209.32,209.31,53.08751974]
[1759263864245,0.1,209.32,209.31,66.06576487]
[1759263866335,1.88509972,209.44,209.31,66.06576487]
[1759263866336,0.1,209.44,209.38,20.8]
[1759263866658,0.1,209.44,209.39,34.49]
[1759263867019,0.1,209.44,209.4,0.71]
[1759263867222,0.1,209.44,209.41,33.8]
[1759263867539,0.66,209.43,209.41,33.8]
[1759263868437,0.66,209.42,209.41,33.8]
[1759263868928,0.1,209.44,209.41,33.8]
[1759263869119,0.66,209.43,209.41,33.8]
[1759263869434,0.66,209.42,209.41,33.8]
[1759263870828,0.66,209.42,209.41,71.04]
[1759263871032,0.76,209.44,209.41,71.04]
[1759263871342,0.66,209.43,209.41,71.04]
[1759263872831,0.66,209.42,209.41,71.04]
[1759263873030,0.66,209.42,209.41,150.14]
[1759263873227,0.66,209.42,209.41,116.34]
[1759263873419,0.66,209.42,209.41,150.14]
[1759263876252,0.76,209.44,209.41,150.14]
[1759263876421,0.66,209.43,209.41,150.14]
[1759263876844,0.66,209.42,209.41,150.14]
[1759263877031,0.1,209.44,209.41,150.14]
[1759263877226,0.66,209.43,209.41,150.14]
[1759263877627,4.87465802,209.44,209.41,150.14]
[1759263877826,0.66,209.43,209.42,33.76]
[1759263878636,5.43486511,209.43,209.42,33.76]
[1759263880561,12.03659281,209.44,209.42,33.76]
[1759263880562,0.1,209.44,209.42,39.24507283]
[1759263880760,0.1,209.44,209.42,33.76]
[1759263881131,0.1,209.44,209.42,38.53508167]